[Event "NSV Open-ch Rapid 2019"]
[Site "Lueneburg"]
[Date "2019.08.04"]
[Round "6.18"]
[White "Wirries, Frank-Michael"]
[Black "Rempe, Jonas"]
[Result "0-1"]
[ECO "C27"]
[WhiteElo "1858"]
[BlackElo "1839"]
[Annotator "NA RC"]
[PlyCount "61"]
[EventDate "2019.08.03"]
[EventType "swiss"]
[EventCountry "GER"]
[SourceTitle "playchess.com"]
[Source "ChessBase"]
[SourceQuality "1"]
[TimeControl "600+5"]

1. e4 {[%emt 0:00:00]} e5 {[%emt 0:00:00]} 2. Nc3 {[%emt 0:00:00]} Nf6 {[%emt 0:00:00]} 3. Bc4 {[%emt 0:00:06]} Nxe4 {[%emt 0:00:00]} 4. Qh5 {[%emt 0:00:02]} Nd6 {[%emt 0:00:00]} 5. Bb3 {[%emt 0:00:03]} Be7 {[%emt 0:00:08]} 6. Nf3 {[%emt 0:00:38]} O-O {[%emt 0:00:22]} 7. Nxe5 {[%emt 0:00:16]} Nc6 {[%emt 0:10:05]} 8. Nd5 {[%emt 0:01:27]} Bf6 {[%emt 0:00:00]} 9. Ng4 {[%emt 0:01:10]} Be5 {[%emt 0:00:00]} 10. Nxe5 {[%emt 0:01:12]} Nxe5 {[%emt 0:00:00]} 11. O-O {[%emt 0:00:03]} Ng6 {[%emt 0:00:00]} 12. d4 {[%emt 0:00:16]} c6 {[%emt 0:00:00]} 13. Bg5 {[%emt 0:00:04]} Qa5 {[%emt 0:00:00]} 14. Bf4 {[%emt 0:01:47]} Nb5 {[%emt 0:00:00]} 15. c4 {[%emt 0:00:51]} cxd5 {[%emt 0:00:00]} 16. cxb5 {[%emt 0:00:01]} Nxf4 {[%emt 0:00:45]} 17. Qf3 {[%emt 0:00:32]} Ne6 {[%emt 0:00:00]} 18. Qxd5 {[%emt 0:00:30]} Nc7 {[%emt 0:00:00]} 19. Qe4 {[%emt 0:00:24]} Nxb5 {[%emt 0:00:00]} 20. Rfe1 {[%emt 0:00:10]} Nd6 {[%emt 0:00:00]} 21. Qe7 {[%emt 0:00:16]} Qb4 {[%emt 0:00:00]} 22. Re5 {[%emt 0:00:13]} a5 {[%emt 0:00:00]} 23. Rae1 {[%emt 0:00:23]} b6 {[%emt 0:00:00]} 24. Rd5 {[%emt 0:00:13]} Nb7 {[%emt 0:00:00]} 25. Qe4 {[%emt 0:00:34]} a4 {[%emt 0:00:00]} 26. Bc2 {[%emt 0:00:02]} f5 {[%emt 0:00:00]} 27. Qe2 {[%emt 0:00:14]} Nd6 {[%emt 0:00:00]} 28. a3 {[%emt 0:00:24]} Qxb2 {[%emt 0:00:22]} 29. Rxd6 {[%emt 0:00:02]} Ba6 {[%emt 0:00:01]} 30. Bb3+ {[%emt 0:00:11]} Qxb3 {[%emt 0:00:03]} 31. Qf1 {[%emt 0:00:31]} 0-1

[Event "NSV Open-ch Rapid 2019"]
[Site "Lueneburg"]
[Date "2019.08.04"]
[Round "6.19"]
[White "Dralle, Hannes"]
[Black "Weidenhoefer, Max"]
[Result "1-0"]
[ECO "B13"]
[WhiteElo "1732"]
[BlackElo "1805"]
[Annotator "NA RC"]
[PlyCount "29"]
[EventDate "2019.08.03"]
[EventType "swiss"]
[EventCountry "GER"]
[SourceTitle "playchess.com"]
[Source "ChessBase"]
[SourceQuality "1"]
[TimeControl "600+5"]

1. e4 {[%emt 0:00:00]} c6 {[%emt 0:00:00]} 2. d4 {[%emt 0:00:00]} d5 {[%emt 0:00:00]} 3. exd5 {[%emt 0:00:00]} cxd5 {[%emt 0:00:00]} 4. c4 {[%emt 0:00:02]} Nf6 {[%emt 0:00:00]} 5. Nc3 {[%emt 0:00:01]} Nc6 {[%emt 0:00:00]} 6. Bg5 {[%emt 0:00:03]} dxc4 {[%emt 0:00:25]} 7. Bxc4 {[%emt 0:00:01]} Qxd4 {[%emt 0:00:25]} 8. Qxd4 Nxd4 9. O-O-O {[%emt 0:00:06]} Nc6 {[%emt 0:00:17]} 10. Nb5 {[%emt 0:00:12]} Bd7 {[%emt 0:01:49]} 11. Nc7+ {[%emt 0:00:05]} Kd8 {[%emt 0:00:01]} 12. Nxa8 {[%emt 0:00:03]} Ne4 {[%emt 0:00:12]} 13. Bh4 {[%emt 0:00:18]} Nd6 {[%emt 0:00:13]} 14. Rxd6 {[%emt 0:00:11]} g5 {[%emt 0:01:08]} 15. Bxg5 {[%emt 0:00:19]} 1-0

[Event "NSV Open-ch Rapid 2019"]
[Site "Lueneburg"]
[Date "2019.08.04"]
[Round "6.20"]
[White "Harnack, Bernhard"]
[Black "Mundt, Alexandra"]
[Result "0-1"]
[ECO "A07"]
[WhiteElo "1712"]
[BlackElo "1756"]
[Annotator "NA RC"]
[PlyCount "121"]
[EventDate "2019.08.03"]
[EventType "swiss"]
[EventCountry "GER"]
[SourceTitle "playchess.com"]
[Source "ChessBase"]
[SourceQuality "1"]
[TimeControl "600+5"]

1. d3 {[%emt 0:00:01]} d5 {[%emt 0:00:00]} 2. Nf3 {[%emt 0:00:03]} Nc6 {[%emt 0:00:00]} 3. g3 {[%emt 0:00:02]} e5 {[%emt 0:00:01]} 4. Bg2 {[%emt 0:00:02]} f5 {[%emt 0:00:08]} 5. O-O {[%emt 0:00:15]} Nf6 {[%emt 0:00:01]} 6. d4 {[%emt 0:00:17]} e4 {[%emt 0:00:09]} 7. Ne5 {[%emt 0:00:02]} Nxe5 {[%emt 0:00:13]} 8. dxe5 {[%emt 0:00:02]} Ng4 {[%emt 0:00:02]} 9. Nc3 {[%emt 0:00:39]} c6 {[%emt 0:00:15]} 10. e3 {[%emt 0:00:30]} Nxe5 {[%emt 0:00:19]} 11. Qh5+ {[%emt 0:00:03]} g6 {[%emt 0:00:23]} 12. Qe2 {[%emt 0:00:02]} Bg7 {[%emt 0:00:07]} 13. f3 {[%emt 0:00:21]} O-O {[%emt 0:00:18]} 14. Bd2 {[%emt 0:00:23]} Be6 {[%emt 0:00:55]} 15. Rf2 {[%emt 0:00:02]} Nc4 {[%emt 0:01:04]} 16. Rb1 {[%emt 0:00:17]} Qe7 {[%emt 0:02:57]} 17. a3 {[%emt 0:00:21]} Rad8 {[%emt 0:00:10]} 18. Be1 {[%emt 0:01:04]} d4 {[%emt 0:00:17]} 19. exd4 {[%emt 0:00:07]} Bxd4 {[%emt 0:00:02]} 20. Nd1 {[%emt 0:00:18]} Bd5 {[%emt 0:01:02]} 21. c3 {[%emt 0:00:01]} Bxf2+ {[%emt 0:00:07]} 22. Bxf2 {[%emt 0:00:03]} Rfe8 {[%emt 0:01:01]} 23. f4 {[%emt 0:00:23]} Bf7 {[%emt 0:01:07]} 24. Ne3 {[%emt 0:00:32]} Rd2 {[%emt 0:00:17]} 25. Qe1 {[%emt 0:00:17]} Red8 {[%emt 0:00:02]} 26. Nxc4 {[%emt 0:00:07]} Bxc4 {[%emt 0:00:01]} 27. Bd4 {[%emt 0:00:07]} Bd3 {[%emt 0:00:27]} 28. Qxd2 {[%emt 0:00:10]} Bxb1 {[%emt 0:00:02]} 29. Qe1 {[%emt 0:00:25]} Bd3 {[%emt 0:00:12]} 30. Qe3 {[%emt 0:00:13]} b6 {[%emt 0:00:12]} 31. b4 {[%emt 0:00:04]} Qf7 {[%emt 0:00:09]} 32. a4 {[%emt 0:00:05]} Qa2 {[%emt 0:00:04]} 33. Qc1 {[%emt 0:00:39]} Qxa4 {[%emt 0:00:08]} 34. h3 {[%emt 0:00:03]} Qc2 {[%emt 0:00:03]} 35. Qa1 {[%emt 0:00:07]} Rd7 {[%emt 0:00:06]} 36. g4 {[%emt 0:00:13]} Qb1+ {[%emt 0:00:04]} 37. Qxb1 {[%emt 0:00:04]} Bxb1 {[%emt 0:00:02]} 38. Kf2 {[%emt 0:00:13]} Bc2 {[%emt 0:00:10]} 39. Ke3 {[%emt 0:00:03]} Bd1 {[%emt 0:00:05]} 40. g5 {[%emt 0:00:03]} Kf7 {[%emt 0:00:02]} 41. h4 {[%emt 0:00:03]} Ke6 {[%emt 0:00:02]} 42. Bf1 {[%emt 0:00:03]} Rb7 {[%emt 0:00:21]} 43. Bc4+ {[%emt 0:00:03]} Ke7 {[%emt 0:00:08]} 44. Bf6+ {[%emt 0:00:12]} Kf8 {[%emt 0:00:05]} 45. Ba6 {[%emt 0:00:03]} Rd7 {[%emt 0:00:05]} 46. Bc4 {[%emt 0:00:32]} Ba4 {[%emt 0:00:03]} 47. Be5 {[%emt 0:00:12]} Rd1 {[%emt 0:00:08]} 48. Be2 {[%emt 0:00:16]} Rh1 {[%emt 0:00:06]} 49. Bd6+ {[%emt 0:00:08]} Ke8 {[%emt 0:00:03]} 50. h5 {[%emt 0:00:19]} gxh5 {[%emt 0:00:03]} 51. Kf2 {[%emt 0:00:04]} Bb3 {[%emt 0:00:04]} 52. Kg2 {[%emt 0:00:05]} Rc1 {[%emt 0:00:04]} 53. Be5 {[%emt 0:00:02]} Rc2 {[%emt 0:00:03]} 54. Kf1 {[%emt 0:00:05]} h4 {[%emt 0:00:04]} 55. Bd1 {[%emt 0:00:05]} Bc4+ {[%emt 0:00:03]} 56. Ke1 {[%emt 0:00:03]} Ra2 {[%emt 0:00:05]} 57. Bh5+ {[%emt 0:00:11]} Kd7 {[%emt 0:00:07]} 58. g6 {[%emt 0:00:11]} hxg6 {[%emt 0:00:01]} 59. Bxg6 {[%emt 0:00:01]} Be6 {[%emt 0:00:08]} 60. Bh5 {[%emt 0:00:06]} h3 {[%emt 0:00:02]} 61. Be2 {[%emt 0:00:02]} 0-1

[Event "NSV Open-ch Rapid 2019"]
[Site "Lueneburg"]
[Date "2019.08.04"]
[Round "6.21"]
[White "Serrer, David"]
[Black "Marzik, Arne"]
[Result "1-0"]
[ECO "A13"]
[WhiteElo "1516"]
[BlackElo "1366"]
[Annotator "NA RC"]
[PlyCount "37"]
[EventDate "2019.08.03"]
[EventType "swiss"]
[EventCountry "GER"]
[SourceTitle "playchess.com"]
[Source "ChessBase"]
[SourceQuality "1"]
[TimeControl "600+5"]

1. c4 {[%emt 0:00:00]} Nf6 {[%emt 0:00:00]} 2. Nf3 {[%emt 0:00:00]} e6 {[%emt 0:00:03]} 3. e3 {[%emt 0:00:18]} c5 {[%emt 0:00:04]} 4. a3 {[%emt 0:00:05]} Nc6 {[%emt 0:00:15]} 5. d4 {[%emt 0:00:04]} b6 {[%emt 0:00:23]} 6. g3 {[%emt 0:00:08]} Bb7 {[%emt 0:00:01]} 7. Bg2 {[%emt 0:00:01]} Be7 {[%emt 0:00:01]} 8. O-O {[%emt 0:00:04]} O-O {[%emt 0:00:02]} 9. Ne5 {[%emt 0:00:08]} Rb8 {[%emt 0:00:51]} 10. Nxc6 {[%emt 0:00:20]} Bxc6 {[%emt 0:00:02]} 11. d5 {[%emt 0:00:07]} exd5 {[%emt 0:00:24]} 12. cxd5 {[%emt 0:00:02]} Bb5 {[%emt 0:00:54]} 13. d6 {[%emt 0:00:57]} Bxf1 {[%emt 0:01:04]} 14. dxe7 {[%emt 0:00:04]} Qxe7 {[%emt 0:00:02]} 15. Kxf1 {[%emt 0:00:16]} Rfd8 {[%emt 0:00:10]} 16. Nc3 {[%emt 0:00:04]} Qe6 {[%emt 0:00:52]} 17. e4 {[%emt 0:00:45]} b5 {[%emt 0:02:25]} 18. Bf4 {[%emt 0:00:24]} Rb6 {[%emt 0:00:39]} 19. Bc7 {[%emt 0:00:11]} 1-0

[Event "NSV Open-ch Rapid 2019"]
[Site "Lueneburg"]
[Date "2019.08.04"]
[Round "6.25"]
[White "Schubert, Karl Heinz"]
[Black "Rick, Niklas Corvin"]
[Result "0-1"]
[ECO "B02"]
[WhiteElo "1335"]
[BlackElo "1444"]
[Annotator "NA RC"]
[PlyCount "60"]
[EventDate "2019.08.03"]
[EventType "swiss"]
[EventCountry "GER"]
[SourceTitle "playchess.com"]
[Source "ChessBase"]
[SourceQuality "1"]
[TimeControl "600+5"]

1. e4 {[%emt 0:00:00]} d5 {[%emt 0:00:00]} 2. exd5 {[%emt 0:00:01]} Nf6 {[%emt 0:00:00]} 3. Nc3 {[%emt 0:00:06]} Nxd5 {[%emt 0:00:12]} 4. Bc4 {[%emt 0:00:01]} Nxc3 {[%emt 0:00:06]} 5. bxc3 {[%emt 0:00:03]} Bf5 {[%emt 0:00:11]} 6. Qf3 {[%emt 0:00:04]} e6 {[%emt 0:00:11]} 7. Qxb7 {[%emt 0:00:04]} Nd7 {[%emt 0:00:09]} 8. Nf3 {[%emt 0:00:14]} Bd6 {[%emt 0:00:57]} 9. O-O {[%emt 0:00:03]} O-O {[%emt 0:00:12]} 10. Bb2 {[%emt 0:00:13]} Rb8 {[%emt 0:00:20]} 11. Qa6 {[%emt 0:00:14]} Rxb2 {[%emt 0:00:10]} 12. Bd3 {[%emt 0:00:20]} Bxd3 {[%emt 0:00:16]} 13. Qxd3 {[%emt 0:00:02]} Qe7 {[%emt 0:00:14]} 14. c4 {[%emt 0:00:11]} Rd8 {[%emt 0:00:41]} 15. Qc3 {[%emt 0:00:03]} Rbb8 {[%emt 0:00:09]} 16. d4 {[%emt 0:00:03]} c5 {[%emt 0:00:12]} 17. d5 {[%emt 0:00:05]} exd5 {[%emt 0:00:31]} 18. Rae1 {[%emt 0:00:04]} Qf8 {[%emt 0:00:04]} 19. cxd5 {[%emt 0:00:03]} Nb6 {[%emt 0:00:14]} 20. Ng5 {[%emt 0:00:07]} Nxd5 {[%emt 0:00:50]} 21. Qd3 {[%emt 0:00:03]} Nf6 {[%emt 0:00:09]} 22. Re3 {[%emt 0:00:47]} Bxh2+ {[%emt 0:00:13]} 23. Kxh2 {[%emt 0:00:08]} Rxd3 {[%emt 0:00:02]} 24. Rxd3 {[%emt 0:00:06]} Rd8 {[%emt 0:00:13]} 25. Rh3 {[%emt 0:00:02]} Rd2 {[%emt 0:00:12]} 26. Kg3 {[%emt 0:00:13]} Qd6+ {[%emt 0:00:16]} 27. f4 {[%emt 0:00:01]} Rxc2 {[%emt 0:00:17]} 28. Rfh1 {[%emt 0:00:28]} Qd3+ {[%emt 0:00:13]} 29. Kh2 {[%emt 0:00:19]} Ng4+ {[%emt 0:00:03]} 30. Kg1 {[%emt 0:00:04]} Qd1# 0-1

[Event "NSV Open-ch Rapid 2019"]
[Site "Lueneburg"]
[Date "2019.08.04"]
[Round "7.4"]
[White "Kahlert, Thomas"]
[Black "Jahncke, Giso"]
[Result "0-1"]
[ECO "E91"]
[WhiteElo "2152"]
[BlackElo "2325"]
[Annotator "ChessBase"]
[PlyCount "172"]
[EventDate "2019.08.03"]
[EventType "swiss"]
[EventCountry "GER"]
[SourceTitle "playchess.com"]
[Source "ChessBase"]
[SourceQuality "1"]
[TimeControl "600+5"]

1. Nf3 {[%emt 0:00:00]} g6 {[%emt 0:00:00]} 2. d4 {[%emt 0:00:04]} Nf6 {[%emt 0:00:05]} 3. c4 {[%emt 0:00:02]} Bg7 {[%emt 0:00:01]} 4. Nc3 {[%emt 0:00:02]} O-O {[%emt 0:00:02]} 5. e4 {[%emt 0:00:02]} d6 {[%emt 0:00:02]} 6. Be2 {[%emt 0:00:01]} Bg4 {[%emt 0:00:18]} 7. Be3 {[%emt 0:00:05]} Nfd7 {[%emt 0:00:01]} 8. Ng1 {[%emt 0:00:02]} Bxe2 {[%emt 0:00:06]} 9. Ngxe2 {[%emt 0:00:02]} a6 {[%emt 0:00:07]} 10. O-O {[%emt 0:00:04]} c5 {[%emt 0:00:06]} 11. f3 {[%emt 0:00:16]} Nc6 {[%emt 0:00:11]} 12. Qd2 {[%emt 0:00:11]} Rb8 {[%emt 0:01:06]} 13. Rfd1 {[%emt 0:00:24]} b5 {[%emt 0:00:57]} 14. cxb5 {[%emt 0:00:17]} axb5 {[%emt 0:00:02]} 15. dxc5 {[%emt 0:00:03]} Nxc5 {[%emt 0:00:03]} 16. Rac1 {[%emt 0:00:22]} b4 {[%emt 0:01:09]} 17. Nd5 {[%emt 0:00:46]} Qa5 {[%emt 0:00:11]} 18. Nd4 {[%emt 0:00:57]} Bxd4 {[%emt 0:01:56]} 19. Bxd4 {[%emt 0:00:05]} Rfe8 {[%emt 0:00:17]} 20. Bxc5 {[%emt 0:04:01]} dxc5 {[%emt 0:00:03]} 21. Qc2 {[%emt 0:00:02]} Rb5 {[%emt 0:00:44]} 22. b3 {[%emt 0:00:23]} Ra8 {[%emt 0:00:49]} 23. h4 {[%emt 0:00:45]} e6 {[%emt 0:00:31]} 24. Nf6+ {[%emt 0:00:30]} Kg7 {[%emt 0:00:02]} 25. Nd7 {[%emt 0:00:37]} Nd4 {[%emt 0:00:25]} 26. Qc4 {[%emt 0:00:05]} Rd8 {[%emt 0:00:47]} 27. Nxc5 {[%emt 0:00:35]} Nxf3+ {[%emt 0:00:55]} 28. gxf3 {[%emt 0:00:20]} Rxd1+ {[%emt 0:00:02]} 29. Rxd1 {[%emt 0:00:02]} Rxc5 {[%emt 0:00:01]} 30. Qd4+ {[%emt 0:00:16]} e5 {[%emt 0:00:01]} 31. Qd2 {[%emt 0:00:01]} Rc3 {[%emt 0:00:09]} 32. Kg2 {[%emt 0:00:02]} Qc7 {[%emt 0:00:35]} 33. Kg3 {[%emt 0:00:10]} Rc2 {[%emt 0:00:21]} 34. Qd6 {[%emt 0:00:23]} Qc3 {[%emt 0:00:29]} 35. h5 {[%emt 0:00:16]} gxh5 {[%emt 0:00:13]} 36. Qd3 {[%emt 0:00:27]} Qxd3 {[%emt 0:00:06]} 37. Rxd3 {[%emt 0:00:01]} Rxa2 {[%emt 0:00:01]} 38. Rd5 {[%emt 0:00:02]} Rb2 {[%emt 0:00:02]} 39. Rxe5 {[%emt 0:00:02]} Rxb3 {[%emt 0:00:01]} 40. Rxh5 {[%emt 0:00:01]} Rb1 {[%emt 0:00:03]} 41. Kg2 {[%emt 0:00:03]} b3 {[%emt 0:00:03]} 42. Rb5 {[%emt 0:00:02]} Kf6 {[%emt 0:00:06]} 43. Kh2 {[%emt 0:00:11]} Ke6 {[%emt 0:00:03]} 44. Kg2 {[%emt 0:00:09]} Kd6 {[%emt 0:00:11]} 45. Rb7 {[%emt 0:00:11]} Ke6 {[%emt 0:00:13]} 46. Rb5 {[%emt 0:00:02]} Kd6 {[%emt 0:00:03]} 47. Rb7 {[%emt 0:00:01]} Kc6 {[%emt 0:00:04]} 48. Rb8 {[%emt 0:00:18]} Kc5 {[%emt 0:00:09]} 49. Rb7 {[%emt 0:00:15]} Kc6 {[%emt 0:00:00]} 50. Rb4 {[%emt 0:00:02]} h5 {[%emt 0:00:08]} 51. Rb8 {[%emt 0:00:04]} h4 {[%emt 0:00:02]} 52. Rb4 {[%emt 0:00:02]} Kc5 {[%emt 0:00:11]} 53. Rb8 {[%emt 0:00:02]} Kc4 {[%emt 0:00:03]} 54. Rb7 {[%emt 0:00:11]} f6 {[%emt 0:00:01]} 55. Rb6 {[%emt 0:00:02]} Kc5 {[%emt 0:00:01]} 56. Rb8 {[%emt 0:00:02]} Kd6 {[%emt 0:00:15]} 57. Rb5 {[%emt 0:00:02]} Ke6 {[%emt 0:00:00]} 58. Kh2 {[%emt 0:00:03]} h3 {[%emt 0:00:01]} 59. f4 {[%emt 0:00:06]} Kd6 {[%emt 0:00:05]} 60. Kxh3 {[%emt 0:00:04]} b2 {[%emt 0:00:04]} 61. Kg2 {[%emt 0:00:01]} Kc6 {[%emt 0:00:03]} 62. Rb8 {[%emt 0:00:02]} Kc5 {[%emt 0:00:01]} 63. Rb7 {[%emt 0:00:02]} Kd4 {[%emt 0:00:01]} 64. Rb4+ {[%emt 0:00:01]} Ke3 {[%emt 0:00:01]} 65. e5 {[%emt 0:00:01]} fxe5 {[%emt 0:00:15]} 66. fxe5 {[%emt 0:00:01]} Kd3 {[%emt 0:00:03]} 67. Rb7 {[%emt 0:00:27]} Kc3 {[%emt 0:00:06]} 68. e6 {[%emt 0:00:21]} Re1 {[%emt 0:00:03]} 69. e7 {[%emt 0:00:02]} Rxe7 {[%emt 0:00:05]} 70. Rxe7 {[%emt 0:00:01]} b1=Q {[%emt 0:00:01]} 71. Re2 {[%emt 0:00:02]} Qf5 {[%emt 0:00:07]} 72. Kg3 {[%emt 0:00:03]} Kd3 {[%emt 0:00:04]} 73. Rf2 {[%emt 0:00:03]} Qg5+ {[%emt 0:00:03]} 74. Kf3 {[%emt 0:00:01]} Qh4 {[%emt 0:00:14]} 75. Kg2 {[%emt 0:00:13]} Qg4+ {[%emt 0:00:03]} 76. Kf1 {[%emt 0:00:03]} Ke3 {[%emt 0:00:10]} 77. Rh2 {[%emt 0:00:14]} Qf3+ {[%emt 0:00:13]} 78. Kg1 {[%emt 0:00:02]} Qg3+ {[%emt 0:00:06]} 79. Rg2 {[%emt 0:00:02]} Qe1+ {[%emt 0:00:03]} 80. Kh2 {[%emt 0:00:01]} Kf3 {[%emt 0:00:03]} 81. Rc2 {[%emt 0:00:14]} Qh4+ {[%emt 0:00:06]} 82. Kg1 {[%emt 0:00:01]} Qg5+ {[%emt 0:00:08]} 83. Kf1 {[%emt 0:00:02]} Qb5+ {[%emt 0:00:02]} 84. Ke1 {[%emt 0:00:04]} Qb4+ {[%emt 0:00:07]} 85. Kd1 {[%emt 0:00:05]} Ke3 {[%emt 0:00:03]} 86. Kc1 {[%emt 0:00:04]} Kd3 {[%emt 0:00:04]} 0-1

[Event "NSV Open-ch Rapid 2019"]
[Site "Lueneburg"]
[Date "2019.08.04"]
[Round "7.8"]
[White "Ramme, Christoph"]
[Black "Schulz, Daniel"]
[Result "1-0"]
[ECO "B07"]
[WhiteElo "2154"]
[BlackElo "2071"]
[Annotator "ChessBase"]
[PlyCount "115"]
[EventDate "2019.08.03"]
[EventType "swiss"]
[EventCountry "GER"]
[SourceTitle "playchess.com"]
[Source "ChessBase"]
[SourceQuality "1"]
[TimeControl "600+5"]

1. e4 {[%emt 0:00:00]} d6 {[%emt 0:00:02]} 2. d4 {[%emt 0:00:00]} Nf6 {[%emt 0:00:00]} 3. Nc3 {[%emt 0:00:00]} Nbd7 {[%emt 0:00:01]} 4. f4 {[%emt 0:00:05]} e5 {[%emt 0:00:06]} 5. Nf3 {[%emt 0:00:12]} exd4 {[%emt 0:00:01]} 6. Qxd4 {[%emt 0:00:09]} c6 {[%emt 0:00:18]} 7. Bc4 {[%emt 0:00:26]} d5 {[%emt 0:00:30]} 8. exd5 {[%emt 0:00:16]} Bc5 {[%emt 0:00:04]} 9. Qd3 {[%emt 0:00:24]} O-O {[%emt 0:00:42]} 10. Bd2 {[%emt 0:01:30]} Re8+ {[%emt 0:00:16]} 11. Kf1 {[%emt 0:01:06]} Nb6 {[%emt 0:05:29]} 12. dxc6 {[%emt 0:00:28]} bxc6 {[%emt 0:00:25]} 13. Re1 {[%emt 0:01:48]} Rxe1+ {[%emt 0:00:15]} 14. Bxe1 {[%emt 0:00:19]} Qc7 {[%emt 0:00:12]} 15. Ne5 {[%emt 0:00:30]} Nxc4 {[%emt 0:00:36]} 16. Qxc4 {[%emt 0:00:11]} Bb6 {[%emt 0:00:50]} 17. Bf2 {[%emt 0:00:35]} Bxf2 {[%emt 0:00:59]} 18. Kxf2 {[%emt 0:00:02]} Qb6+ {[%emt 0:00:06]} 19. Kf3 {[%emt 0:00:06]} Qc7 {[%emt 0:00:30]} 20. Rd1 {[%emt 0:00:26]} Bb7 {[%emt 0:00:01]} 21. Qc5 {[%emt 0:00:19]} h6 {[%emt 0:00:12]} 22. Nd5 {[%emt 0:00:39]} Nxd5 {[%emt 0:00:08]} 23. Rxd5 {[%emt 0:00:01]} Qb6 {[%emt 0:00:05]} 24. Qxb6 axb6 {[%emt 0:00:02]} 25. Rd7 {[%emt 0:00:11]} Ba6 {[%emt 0:00:08]} 26. Rxf7 {[%emt 0:00:09]} c5 {[%emt 0:00:03]} 27. a3 {[%emt 0:00:44]} Rd8 {[%emt 0:00:02]} 28. Rd7 {[%emt 0:00:08]} Rxd7 {[%emt 0:00:10]} 29. Nxd7 {[%emt 0:00:01]} Bb7+ {[%emt 0:00:02]} 30. Kf2 {[%emt 0:00:04]} Be4 {[%emt 0:00:06]} 31. c3 {[%emt 0:00:14]} Kf7 {[%emt 0:00:02]} 32. Nxb6 {[%emt 0:00:02]} Ke6 {[%emt 0:00:02]} 33. b4 {[%emt 0:00:19]} Kd6 {[%emt 0:00:11]} 34. Nc4+ {[%emt 0:00:05]} Kc6 {[%emt 0:00:07]} 35. a4 {[%emt 0:00:10]} Bd5 {[%emt 0:00:06]} 36. Ne3 {[%emt 0:00:05]} Bb3 {[%emt 0:00:01]} 37. a5 {[%emt 0:00:06]} cxb4 {[%emt 0:00:06]} 38. cxb4 {[%emt 0:00:01]} Kb5 {[%emt 0:00:01]} 39. Nf5 {[%emt 0:00:03]} Kxb4 {[%emt 0:00:06]} 40. a6 {[%emt 0:00:01]} Kb5 {[%emt 0:00:08]} 41. a7 {[%emt 0:00:01]} Bd5 {[%emt 0:00:02]} 42. Nxg7 {[%emt 0:00:07]} Kb6 {[%emt 0:00:01]} 43. Nf5 {[%emt 0:00:03]} h5 {[%emt 0:00:07]} 44. Ng7 {[%emt 0:00:17]} h4 {[%emt 0:00:03]} 45. h3 {[%emt 0:00:05]} Kxa7 {[%emt 0:00:03]} 46. Nf5 {[%emt 0:00:01]} Kb6 {[%emt 0:00:04]} 47. Nxh4 {[%emt 0:00:01]} Kc5 {[%emt 0:00:01]} 48. g4 {[%emt 0:00:05]} Kd6 {[%emt 0:00:01]} 49. Ke3 {[%emt 0:00:06]} Ke6 {[%emt 0:00:03]} 50. Nf3 {[%emt 0:00:06]} Kf6 {[%emt 0:00:03]} 51. h4 {[%emt 0:00:06]} Bc4 {[%emt 0:00:05]} 52. h5 {[%emt 0:00:05]} Bd5 {[%emt 0:00:02]} 53. Nd4 {[%emt 0:00:05]} Bb7 {[%emt 0:00:05]} 54. g5+ {[%emt 0:00:01]} Kg7 {[%emt 0:00:02]} 55. Ne2 {[%emt 0:00:16]} Kf7 {[%emt 0:00:11]} 56. Kd4 {[%emt 0:00:06]} Bf3 {[%emt 0:00:03]} 57. Ng3 {[%emt 0:00:01]} Ke6 {[%emt 0:00:07]} 58. f5+ {[%emt 0:00:10]} 1-0

[Event "NSV Open-ch Rapid 2019"]
[Site "Lueneburg"]
[Date "2019.08.04"]
[Round "7.9"]
[White "Chennaoui, Yasin"]
[Black "Rothenberg, Jannik"]
[Result "1-0"]
[ECO "A36"]
[WhiteElo "2092"]
[BlackElo "1859"]
[Annotator "NA RC"]
[PlyCount "89"]
[EventDate "2019.08.03"]
[EventType "swiss"]
[EventCountry "GER"]
[SourceTitle "playchess.com"]
[Source "ChessBase"]
[SourceQuality "1"]
[TimeControl "600+5"]

1. c4 {[%emt 0:00:00]} g6 {[%emt 0:00:05]} 2. g3 {[%emt 0:00:00]} Bg7 {[%emt 0:00:01]} 3. Bg2 {[%emt 0:00:00]} d6 {[%emt 0:00:11]} 4. Nc3 {[%emt 0:00:00]} c5 {[%emt 0:00:20]} 5. e4 {[%emt 0:00:04]} Nc6 {[%emt 0:00:07]} 6. Nge2 {[%emt 0:00:02]} Qd7 {[%emt 0:00:07]} 7. O-O {[%emt 0:00:10]} b6 {[%emt 0:00:01]} 8. a3 {[%emt 0:00:13]} Bb7 {[%emt 0:00:05]} 9. Rb1 {[%emt 0:00:01]} Nd4 {[%emt 0:00:12]} 10. d3 {[%emt 0:00:05]} e6 {[%emt 0:00:29]} 11. b4 {[%emt 0:00:04]} Ne7 {[%emt 0:00:11]} 12. f4 {[%emt 0:00:14]} O-O {[%emt 0:00:19]} 13. Be3 {[%emt 0:00:26]} Rad8 {[%emt 0:00:37]} 14. Kh1 {[%emt 0:00:47]} f5 {[%emt 0:00:03]} 15. Bg1 {[%emt 0:00:08]} fxe4 {[%emt 0:01:15]} 16. dxe4 {[%emt 0:00:08]} e5 {[%emt 0:00:30]} 17. bxc5 {[%emt 0:00:31]} dxc5 {[%emt 0:00:33]} 18. Nd5 {[%emt 0:00:18]} Ba6 {[%emt 0:00:54]} 19. Nxd4 {[%emt 0:01:52]} exd4 {[%emt 0:00:43]} 20. Nxe7+ {[%emt 0:00:04]} Qxe7 {[%emt 0:00:05]} 21. Qa4 {[%emt 0:00:04]} Bc8 {[%emt 0:00:22]} 22. e5 {[%emt 0:01:19]} Bb7 {[%emt 0:00:18]} 23. Qc2 {[%emt 0:00:04]} g5 {[%emt 0:00:18]} 24. Bxb7 {[%emt 0:00:15]} Qxb7+ {[%emt 0:00:02]} 25. Qg2 {[%emt 0:00:01]} Qxg2+ {[%emt 0:00:38]} 26. Kxg2 {[%emt 0:00:02]} gxf4 {[%emt 0:00:01]} 27. gxf4 {[%emt 0:00:02]} Bh6 {[%emt 0:00:23]} 28. f5 {[%emt 0:00:15]} Kf7 {[%emt 0:00:36]} 29. Bf2 {[%emt 0:00:13]} Rg8+ {[%emt 0:00:15]} 30. Bg3 {[%emt 0:00:23]} Be3 {[%emt 0:00:17]} 31. Kf3 {[%emt 0:00:06]} Rdf8 {[%emt 0:00:04]} 32. Ke4 {[%emt 0:00:15]} Ke7 {[%emt 0:00:07]} 33. e6 {[%emt 0:00:17]} Rg4+ {[%emt 0:00:26]} 34. Ke5 {[%emt 0:00:27]} Bg5 {[%emt 0:00:16]} 35. Rf3 {[%emt 0:00:28]} h5 {[%emt 0:00:20]} 36. h3 {[%emt 0:01:24]} Bf6+ {[%emt 0:00:10]} 37. Kd5 {[%emt 0:00:00]} Rd8+ {[%emt 0:00:07]} 38. Kc6 {[%emt 0:00:01]} Rg7 {[%emt 0:00:15]} 39. Bc7 {[%emt 0:00:10]} Rc8 {[%emt 0:00:20]} 40. Kb7 {[%emt 0:00:01]} Rgg8 {[%emt 0:00:01]} 41. a4 {[%emt 0:00:35]} h4 {[%emt 0:00:27]} 42. a5 {[%emt 0:00:01]} bxa5 {[%emt 0:00:01]} 43. Rb5 {[%emt 0:00:02]} Rce8 {[%emt 0:00:14]} 44. Rxc5 {[%emt 0:00:03]} Rg3 {[%emt 0:00:05]} 45. Bxg3 {[%emt 0:00:06]} 1-0